bitfinex-derivatives/quotes_BTCF0:USTF0_20230702
["timestamp","ask_amount","ask_price","bid_price","bid_amount"]
[1688308360167,0.214499,30554.0,30553.0,0.161239]
[1688308361184,0.19626931,30554.0,30553.0,0.161239]
[1688308361584,0.214499,30554.0,30553.0,0.161239]
[1688308362886,0.19626931,30554.0,30553.0,0.161239]
[1688308363986,0.17764542,30554.0,30553.0,0.161239]
[1688308367686,0.19587511,30554.0,30553.0,0.161239]
[1688308368080,0.214499,30554.0,30553.0,0.161239]
[1688308368888,0.214499,30554.0,30553.0,0.1416]
[1688308369089,0.575299,30554.0,30550.0,0.019641]
[1688308369277,0.5024,30551.0,30550.0,0.019641]
[1688308369482,0.52204,30551.0,30550.0,0.019641]
[1688308369685,0.53166572,30551.0,30550.0,0.019641]
[1688308369977,0.5685193,30551.0,30550.0,0.019641]
[1688308376382,0.5685193,30551.0,30549.0,0.1404]
[1688308376587,0.1416,30550.0,30549.0,0.1404]
[1688308376788,0.19809458,30550.0,30549.0,0.160042]
[1688308376992,0.20772191,30550.0,30549.0,0.160042]
[1688308377399,0.18949222,30550.0,30549.0,0.160042]
[1688308377594,0.20772191,30550.0,30549.0,0.160042]
[1688308380781,0.61852191,30550.0,30547.0,0.00049098]
[1688308380985,0.05,30545.0,30544.0,0.049112]
[1688308381193,0.570644,30545.0,30544.0,0.07537375]
[1688308381396,0.60749758,30545.0,30543.0,0.065485]
[1688308381598,0.1416,30544.0,30543.0,0.065485]
[1688308381798,0.161245,30544.0,30543.0,0.065485]
[1688308381997,0.19809858,30544.0,30543.0,0.065485]
[1688308382193,0.19809858,30544.0,30542.0,0.161245]
[1688308382496,0.1416,30543.0,30542.0,0.161245]
[1688308382701,0.19809958,30543.0,30542.0,0.019645]
[1688308384589,0.19809958,30543.0,30541.0,0.019647]
[1688308384894,0.55839958,30542.0,30541.0,0.019647]
[1688308385098,0.57095137,30542.0,30541.0,0.019647]
[1688308388889,0.55839958,30542.0,30541.0,0.019647]
[1688308392797,0.55889958,30542.0,30541.0,0.161247]
[1688308395409,0.55889958,30542.0,30541.0,0.16110091]
[1688308397802,0.03685358,30542.0,30541.0,0.16110091]
[1688308398107,0.4108,30556.0,30549.0,1.0]
[1688308398304,0.4108,30556.0,30555.0,0.160438]
[1688308398507,0.4108,30556.0,30555.0,0.18515684]
[1688308399003,0.42581126,30556.0,30555.0,0.18515684]
[1688308399594,0.06501126,30556.0,30555.0,0.18515684]
[1688308401212,0.06501126,30556.0,30555.0,0.160438]
[1688308402513,0.06501126,30556.0,30555.0,0.17928745]
[1688308403414,0.06501126,30556.0,30555.0,0.18515684]
[1688308403913,0.06501126,30556.0,30555.0,0.17928745]
[1688308404913,0.06501126,30556.0,30555.0,0.18515684]
[1688308405102,0.06501126,30556.0,30555.0,0.17928745]
[1688308405816,0.06501126,30556.0,30555.0,0.160438]
[1688308406017,0.20661126,30556.0,30555.0,0.160438]
[1688308406419,0.22484095,30556.0,30555.0,0.160438]
[1688308407519,0.20661126,30556.0,30555.0,0.160438]
[1688308409517,0.23678694,30556.0,30553.0,0.199615]
[1688308409725,0.05,30548.0,30544.0,0.1416]
[1688308409913,0.1408,30545.0,30544.0,0.200535]
[1688308410219,0.20805482,30545.0,30544.0,0.058935]
[1688308410421,0.20805482,30545.0,30543.0,0.019645]
[1688308410422,0.22769982,30545.0,30543.0,0.019645]
[1688308410717,0.24832414,30544.0,30543.0,0.019645]
[1688308411527,0.24832414,30544.0,30541.0,0.058937]
[1688308411819,0.069649,30539.0,30538.0,0.019649]
[1688308412025,0.571449,30539.0,30538.0,0.019649]
[1688308412609,0.60852814,30539.0,30538.0,0.019649]
[1688308417226,0.59089845,30539.0,30538.0,0.161249]
[1688308417523,0.05,30539.0,30538.0,0.16502675]
[1688308417918,0.05,30539.0,30538.0,0.18974559]
[1688308419221,0.069649,30539.0,30538.0,0.16502675]
[1688308420525,0.08849845,30539.0,30538.0,0.16502675]
[1688308421117,0.10672814,30539.0,30538.0,0.16502675]
[1688308423333,0.08849845,30539.0,30538.0,0.16502675]
[1688308424032,0.08849845,30539.0,30538.0,0.1648763]
[1688308425230,0.069649,30539.0,30538.0,0.1648763]
[1688308426921,0.069649,30539.0,30538.0,0.18959514]
[1688308427130,0.05,30539.0,30538.0,0.18959514]
[1688308427330,0.04912,30541.0,30538.0,0.18959514]
[1688308427516,0.019648,30542.0,30541.0,0.019647]
[1688308427716,0.019648,30542.0,30541.0,0.160447]
[1688308427934,0.019648,30542.0,30541.0,0.16502245]
[1688308429823,0.05672714,30542.0,30541.0,0.16502245]
[1688308430423,0.03849745,30542.0,30541.0,0.16502245]
[1688308432631,0.03849745,30542.0,30541.0,0.02422245]
[1688308432836,0.18009745,30542.0,30541.0,0.16582245]
[1688308433131,0.18009745,30542.0,30541.0,0.16582145]
[1688308433836,0.18009745,30542.0,30541.0,0.17169084]
[1688308434440,0.18009745,30542.0,30541.0,0.16582145]
[1688308436735,0.19832714,30542.0,30541.0,0.16582145]
[1688308437137,0.18009745,30542.0,30541.0,0.16582145]
[1688308437328,0.19832714,30542.0,30541.0,0.16582145]
[1688308437531,0.18009745,30542.0,30541.0,0.16582145]
[1688308439035,0.019649,30538.0,30536.0,0.01965]
[1688308439234,0.05,30535.0,30534.0,0.00018073]
[1688308439429,0.22868069,30535.0,30534.0,0.00018073]
[1688308439828,0.24753014,30535.0,30534.0,0.00018073]
[1688308440230,0.210451,30535.0,30531.0,0.21709899]
[1688308440437,0.1402,30532.0,30531.0,0.21709899]
[1688308440742,0.159853,30532.0,30531.0,0.190234]
[1688308441142,0.19693214,30532.0,30531.0,0.190234]
[1688308441942,0.17870245,30532.0,30531.0,0.190234]
[1688308442249,0.159853,30532.0,30531.0,0.190234]
[1688308442632,0.05673214,30532.0,30531.0,0.190734]
[1688308442835,0.03850245,30532.0,30531.0,0.190734]
[1688308446647,0.03850245,30532.0,30531.0,0.20316049]
[1688308446852,0.03850245,30532.0,30531.0,0.20902988]
[1688308447237,0.03850245,30532.0,30531.0,0.20316049]
[1688308447448,0.03850245,30532.0,30531.0,0.20902988]
[1688308448147,0.03850245,30532.0,30531.0,0.20316049]
[1688308453353,0.05673214,30532.0,30531.0,0.20316049]
[1688308453548,0.03850245,30532.0,30531.0,0.20316049]
[1688308454256,0.03850245,30532.0,30531.0,0.20902988]
[1688308456453,0.019653,30532.0,30531.0,0.20902988]
[1688308457349,0.03850245,30532.0,30531.0,0.20902988]
[1688308458253,0.019653,30532.0,30531.0,0.15989588]
[1688308458457,0.19064795,30532.0,30531.0,0.03207949]
[1688308458847,0.22772709,30532.0,30531.0,0.03207949]
[1688308460561,0.2094974,30532.0,30531.0,0.03207949]
[1688308460856,0.22772709,30532.0,30531.0,0.03207949]
[1688308461650,0.19773214,30532.0,30531.0,0.03207949]
[1688308462248,0.22772709,30532.0,30531.0,0.03207949]
[1688308462954,0.19773214,30532.0,30531.0,0.03207949]
[1688308463155,0.17950245,30532.0,30531.0,0.03207949]
[1688308463854,0.54030245,30532.0,30531.0,0.03207949]
[1688308464045,0.55853214,30532.0,30531.0,0.03207949]
[1688308469358,0.54030245,30532.0,30531.0,0.03207949]
[1688308469662,0.521453,30532.0,30531.0,0.03207949]
[1688308469849,0.160653,30532.0,30531.0,0.03207949]
[1688308470253,0.17950245,30532.0,30531.0,0.03207949]
[1688308470664,0.19773214,30532.0,30531.0,0.03207949]
[1688308471363,0.17950245,30532.0,30531.0,0.03207949]
[1688308471554,0.19773214,30532.0,30531.0,0.03207949]
[1688308471757,0.17950245,30532.0,30531.0,0.03207949]
[1688308472755,0.17950245,30532.0,30531.0,0.17367949]
[1688308473965,0.19773214,30532.0,30531.0,0.17367949]
[1688308474566,0.17950245,30532.0,30531.0,0.17367949]
[1688308474758,0.17950245,30532.0,30531.0,0.17954888]
[1688308474958,0.17950245,30532.0,30531.0,0.17367949]
[1688308475566,0.058959,30534.0,30531.0,0.19252894]
[1688308475871,0.019652,30533.0,30532.0,0.02552239]
[1688308476063,0.019652,30533.0,30532.0,0.18010245]
[1688308476370,0.019652,30533.0,30532.0,0.19288824]
[1688308476574,0.019652,30533.0,30532.0,0.19875763]
[1688308478576,1.13073044,30535.0,30532.0,0.55955763]
[1688308478577,0.593,30535.0,30532.0,0.55955763]
[1688308478773,0.593,30535.0,30534.0,0.1416]
[1688308478972,0.019651,30536.0,30534.0,0.161251]
[1688308479180,0.11797229,30537.0,30535.0,0.50464999]
[1688308479479,0.11797229,30537.0,30536.0,0.16125]
[1688308479973,1.0454,30538.0,30536.0,0.16125]
[1688308480161,1.0454,30538.0,30537.0,0.16631884]
[1688308480363,1.065049,30538.0,30537.0,0.16711839]
[1688308481770,0.704249,30538.0,30537.0,0.161249]
[1688308482471,0.704249,30538.0,30537.0,0.16711839]
[1688308482667,0.562649,30538.0,30537.0,0.18596784]
[1688308483083,0.562649,30538.0,30537.0,0.18009845]
[1688308484168,0.562649,30538.0,30537.0,0.161249]
[1688308485992,0.562649,30538.0,30537.0,0.16711839]
[1688308486493,0.562649,30538.0,30537.0,0.161249]
[1688308486691,0.562649,30538.0,30537.0,0.16711839]
[1688308487185,0.562649,30538.0,30537.0,0.161249]
[1688308487577,0.562649,30538.0,30537.0,0.18009845]
[1688308488376,0.543,30538.0,30537.0,0.18009845]
[1688308491286,0.543,30538.0,30537.0,0.18596784]
[1688308492083,0.543,30538.0,30537.0,0.18009845]
[1688308492687,0.543,30538.0,30537.0,0.18596784]
[1688308496084,0.0004912,30540.0,30537.0,0.32756784]
[1688308496290,0.0004912,30540.0,30539.0,0.160348]
[1688308496888,0.0004912,30540.0,30539.0,0.18506684]
[1688308498592,0.0004912,30540.0,30539.0,0.19165892]
[1688308498982,0.0004912,30540.0,30539.0,0.25715892]
[1688308503694,0.0004912,30540.0,30539.0,0.25056684]
[1688308507685,0.0004912,30540.0,30539.0,0.61136684]
[1688308508599,0.0004912,30540.0,30539.0,0.6374949]
[1688308512810,0.543,30545.0,30541.0,0.0655]
[1688308513104,0.543,30545.0,30544.0,0.160345]
[1688308513299,0.543,30545.0,30544.0,0.21474051]
[1688308513504,0.55476545,30545.0,30544.0,0.23945935]
[1688308513907,0.01176545,30545.0,30544.0,0.23945935]
[1688308514104,0.01176545,30545.0,30544.0,0.18506384]
[1688308519502,0.02642465,30548.0,30547.0,0.1416]
[1688308519707,0.03291737,30548.0,30547.0,0.662843]
[1688308519890,0.00698381,30548.0,30547.0,0.662843]
[1688308520096,0.00698381,30548.0,30547.0,0.68756184]
[1688308528814,0.00698381,30548.0,30547.0,0.32676184]
[1688308528999,0.00698381,30548.0,30547.0,0.68756184]
[1688308532915,0.00698381,30548.0,30547.0,0.68795893]
[1688308541515,0.02659998,30551.0,30547.0,0.68795893]
[1688308541718,0.47876744,30557.0,30550.0,1.5674]
[1688308541719,0.05,30555.0,30550.0,1.5674]
[1688308542015,0.05,30555.0,30554.0,0.1416]
[1688308542314,0.05,30555.0,30554.0,0.18595784]
[1688308542908,0.05,30555.0,30554.0,0.18635173]
[1688308543315,0.06006313,30555.0,30554.0,0.18635173]
[1688308555516,0.06006313,30555.0,30554.0,0.21212355]
[1688308558813,0.07970113,30555.0,30554.0,0.21212355]
[1688308559121,0.07970113,30555.0,30554.0,0.20625416]
[1688308560019,0.07970113,30555.0,30554.0,0.21212355]
[1688308561119,0.07970113,30555.0,30554.0,0.02003289]
[1688308561426,0.07970113,30555.0,30554.0,0.00039389]
[1688308561629,0.11678027,30555.0,30554.0,0.00039389]
[1688308561925,0.11678027,30555.0,30552.0,0.058918]
[1688308562116,0.5024,30553.0,30552.0,0.058918]
[1688308562316,0.52204,30553.0,30552.0,0.058918]
[1688308562516,0.53227746,30553.0,30552.0,0.058918]
[1688308563019,0.53227746,30553.0,30552.0,0.0593126]
[1688308563725,0.53227746,30553.0,30552.0,0.0003946]
[1688308564614,0.55050715,30553.0,30552.0,0.0003946]
[1688308565029,0.5693566,30553.0,30552.0,0.0003946]
[1688308566718,0.03707914,30552.0,30546.0,0.065481]
[1688308566928,0.5024,30547.0,30545.0,0.019645]
[1688308567218,0.5024,30547.0,30544.0,0.019645]
[1688308567219,0.19772314,30546.0,30544.0,0.019645]
[1688308567420,0.161245,30545.0,30544.0,0.019645]
[1688308567821,0.479745,30545.0,30544.0,0.019645]
[1688308568031,0.51682414,30545.0,30544.0,0.019645]
[1688308574935,0.87762414,30545.0,30544.0,0.01999103]
[1688308580830,0.90319038,30545.0,30544.0,0.01999103]
[1688308581532,0.90319038,30545.0,30544.0,0.0261185]
[1688308582338,0.54239038,30545.0,30544.0,0.0261185]
[1688308582541,0.90319038,30545.0,30544.0,0.0261185]
[1688308583938,0.54239038,30545.0,30544.0,0.0261185]
[1688308584140,0.90319038,30545.0,30544.0,0.0261185]
[1688308584838,0.86611124,30545.0,30544.0,0.0261185]
[1688308586042,0.88434093,30545.0,30544.0,0.0261185]
[1688308586642,0.90319038,30545.0,30544.0,0.0261185]
[1688308590346,0.88434093,30545.0,30544.0,0.0261185]
[1688308592051,0.90319038,30545.0,30544.0,0.0261185]
[1688308593147,0.54239038,30545.0,30544.0,0.0261185]
[1688308593349,0.90319038,30545.0,30544.0,0.0261185]
[1688308602762,0.90319038,30545.0,30544.0,0.1663185]
[1688308603063,0.88496069,30545.0,30544.0,0.1663185]
[1688308604064,0.90319038,30545.0,30544.0,0.1663185]
[1688308604663,0.88496069,30545.0,30544.0,0.1663185]
[1688308605057,0.52416069,30545.0,30544.0,0.1663185]
[1688308605260,0.88496069,30545.0,30544.0,0.1663185]
[1688308607468,0.90319038,30545.0,30544.0,0.1663185]
[1688308609661,0.88496069,30545.0,30544.0,0.1663185]
[1688308610165,0.90319038,30545.0,30544.0,0.1663185]
[1688308610365,0.54239038,30545.0,30544.0,0.1663185]
[1688308610566,0.88496069,30545.0,30544.0,0.1663185]
[1688308611953,0.86611124,30545.0,30544.0,0.18516795]
[1688308614867,0.86611124,30545.0,30544.0,0.1663185]
[1688308615562,0.90319038,30545.0,30544.0,0.1663185]
[1688308618571,0.54239038,30545.0,30544.0,0.1663185]
[1688308618773,0.90319038,30545.0,30544.0,0.1663185]
[1688308619272,0.88496069,30545.0,30544.0,0.1663185]
[1688308620166,0.90319038,30545.0,30544.0,0.1663185]
[1688308620558,0.88496069,30545.0,30544.0,0.1663185]
[1688308620760,0.90319038,30545.0,30544.0,0.1663185]
[1688308621072,0.54239038,30545.0,30544.0,0.1663185]
[1688308621263,0.88496069,30545.0,30544.0,0.1663185]
[1688308621667,0.90319038,30545.0,30544.0,0.1663185]
[1688308622374,0.88496069,30545.0,30544.0,0.1663185]
[1688308622959,0.90319038,30545.0,30544.0,0.1663185]
[1688308623573,0.88496069,30545.0,30544.0,0.1663185]
[1688308623776,0.52416069,30545.0,30544.0,0.1663185]
[1688308623968,0.88496069,30545.0,30544.0,0.1663185]
[1688308624877,0.86611124,30545.0,30544.0,0.1663185]
[1688308625370,0.86611124,30545.0,30544.0,0.18516795]
[1688308627168,0.90319038,30545.0,30544.0,0.1663185]
[1688308627865,0.88496069,30545.0,30544.0,0.1663185]
[1688308628571,0.86611124,30545.0,30544.0,0.19103734]
[1688308628761,0.86611124,30545.0,30544.0,0.18516795]
[1688308630168,0.86611124,30545.0,30544.0,0.19103734]
[1688308630677,0.86611124,30545.0,30544.0,0.18516795]
[1688308632680,0.86611124,30545.0,30544.0,0.18656795]
[1688308632979,0.50531124,30545.0,30544.0,0.18656795]
[1688308633380,0.86611124,30545.0,30544.0,0.18656795]
[1688308634686,0.86611124,30545.0,30544.0,0.1677185]
[1688308635380,0.88496069,30545.0,30544.0,0.1677185]
[1688308636380,0.90319038,30545.0,30544.0,0.1677185]
[1688308636583,0.88496069,30545.0,30544.0,0.1677185]
[1688308636786,0.88496069,30545.0,30544.0,0.17358789]
[1688308637083,0.86611124,30545.0,30544.0,0.1677185]
[1688308639382,0.88434093,30545.0,30544.0,0.1677185]
[1688308639583,0.86611124,30545.0,30544.0,0.1677185]
[1688308639985,0.88434093,30545.0,30544.0,0.1677185]
[1688308641286,0.90319038,30545.0,30544.0,0.1677185]
[1688308641982,0.54239038,30545.0,30544.0,0.1677185]
[1688308642482,0.90319038,30545.0,30544.0,0.1677185]
[1688308642781,0.74336069,30545.0,30544.0,0.1672185]
[1688308644981,0.76159038,30545.0,30544.0,0.1672185]
[1688308648594,0.74336069,30545.0,30544.0,0.1672185]
[1688308648990,0.38256069,30545.0,30544.0,0.1672185]
[1688308649189,0.74336069,30545.0,30544.0,0.1672185]
[1688308649387,0.76159038,30545.0,30544.0,0.1672185]
[1688308650496,0.74336069,30545.0,30544.0,0.1672185]
[1688308650792,0.76159038,30545.0,30544.0,0.1672185]
[1688308651191,0.74336069,30545.0,30544.0,0.1672185]
[1688308651795,0.72451124,30545.0,30544.0,0.1672185]
[1688308652493,0.74274093,30545.0,30544.0,0.1672185]
[1688308653097,0.72451124,30545.0,30544.0,0.1672185]
[1688308654594,0.74336069,30545.0,30544.0,0.1672185]
[1688308655195,0.38256069,30545.0,30544.0,0.1672185]
[1688308655397,0.74336069,30545.0,30544.0,0.1672185]
[1688308655688,0.38256069,30545.0,30544.0,0.1672185]
[1688308655899,0.74336069,30545.0,30544.0,0.1672185]
[1688308658901,0.72451124,30545.0,30544.0,0.1672185]
[1688308659503,0.36371124,30545.0,30544.0,0.1672185]
[1688308659895,0.72451124,30545.0,30544.0,0.1672185]
[1688308661100,0.76159038,30545.0,30544.0,0.1672185]
[1688308661301,0.74336069,30545.0,30544.0,0.1672185]
[1688308661892,0.38256069,30545.0,30544.0,0.1672185]
[1688308662099,0.74336069,30545.0,30544.0,0.1672185]
[1688308663616,0.38256069,30545.0,30544.0,0.1672185]
[1688308663798,0.74336069,30545.0,30544.0,0.1672185]
[1688308664112,0.38256069,30545.0,30544.0,0.1672185]
[1688308664299,0.74336069,30545.0,30544.0,0.1672185]
[1688308668211,0.76159038,30545.0,30544.0,0.1672185]
[1688308668520,0.40079038,30545.0,30544.0,0.1672185]
[1688308668717,0.74336069,30545.0,30544.0,0.1672185]
[1688308668919,0.38256069,30545.0,30544.0,0.1672185]
[1688308669225,0.74336069,30545.0,30544.0,0.1672185]
[1688308670223,0.76159038,30545.0,30544.0,0.1672185]
[1688308670427,0.74336069,30545.0,30544.0,0.1672185]
[1688308671630,0.72451124,30545.0,30544.0,0.1672185]
[1688308672216,0.36371124,30545.0,30544.0,0.1672185]
[1688308672625,0.40601124,30545.0,30544.0,0.17308789]
[1688308672816,0.019645,30545.0,30544.0,0.18572549]
[1688308682429,0.049113,30546.0,30544.0,0.18572549]
[1688308682630,0.049113,30546.0,30545.0,0.14746939]
[1688308682932,0.049113,30546.0,30545.0,0.16748492]
[1688308683335,0.409911,30547.0,30545.0,0.16748492]
[1688308683523,0.409911,30547.0,30546.0,0.1402]
[1688308683724,0.409911,30547.0,30546.0,0.159844]
[1688308683926,0.409911,30547.0,30546.0,0.16021399]
[1688308684233,0.409911,30547.0,30546.0,0.18493283]
[1688308684826,0.3608,30547.0,30546.0,0.18493283]
[1688308685020,0.11796744,30550.0,30547.0,0.15964945]
[1688308685234,0.11796744,30550.0,30549.0,0.1408]
[1688308685432,0.14441739,30550.0,30549.0,0.16631139]
[1688308685725,0.14441739,30550.0,30549.0,0.18516084]
[1688308685926,0.14441739,30550.0,30549.0,0.18551787]
[1688308686127,0.02644995,30550.0,30549.0,0.18551787]
[1688308686531,0.345641,30551.0,30549.0,0.18551787]
[1688308686731,0.345641,30551.0,30550.0,0.16631884]
[1688308686932,0.345641,30551.0,30550.0,0.18596084]
[1688308687937,0.345641,30551.0,30550.0,0.18631733]
[1688308688346,0.667641,30551.0,30550.0,0.18631733]
[1688308689443,0.69335409,30551.0,30550.0,0.18631733]
[1688308690237,0.36735409,30551.0,30550.0,0.18631733]
[1688308690438,0.34771309,30551.0,30550.0,0.18631733]
[1688308690638,0.00664496,30551.0,30550.0,0.18631733]
[1688308690834,0.322,30554.0,30551.0,0.02471884]
[1688308691035,0.3218,30557.0,30553.0,0.1416]
[1688308691234,0.00017986,30558.0,30556.0,0.2822]
[1688308691437,0.00017986,30558.0,30556.0,0.189894]
[1688308691438,0.33964365,30557.0,30556.0,0.189894]
[1688308691743,0.332937,30557.0,30556.0,0.331494]
[1688308691941,0.332937,30557.0,30556.0,0.35656566]
[1688308692638,0.332937,30557.0,30556.0,0.21496566]
[1688308697446,0.332937,30557.0,30556.0,0.20909627]
[1688308697646,0.332937,30557.0,30556.0,0.21496566]
[1688308698446,0.33792251,30557.0,30556.0,0.21496566]
[1688308702444,0.33792251,30557.0,30556.0,0.20909627]
[1688308702650,0.33792251,30557.0,30556.0,0.35656566]
[1688308704940,0.33792251,30557.0,30556.0,0.21576566]
[1688308706041,0.3410393,30557.0,30556.0,0.21576566]
[1688308706345,0.0277393,30557.0,30556.0,0.21576566]
[1688308707342,0.0277393,30557.0,30556.0,0.21570566]
[1688308724069,0.0277393,30557.0,30556.0,0.20983627]
[1688308724869,0.0277393,30557.0,30556.0,0.21570566]
[1688308746280,0.0277393,30557.0,30556.0,0.19685621]
[1688308746281,0.06481844,30557.0,30556.0,0.19685621]
[1688308746579,0.04658875,30557.0,30556.0,0.19098682]
[1688308746766,0.0277393,30557.0,30556.0,0.19098682]
[1688308747170,0.0277393,30557.0,30556.0,0.20983627]
[1688308747581,0.0277393,30557.0,30556.0,0.21570566]
[1688308747962,0.0277393,30557.0,30556.0,0.20983627]
[1688308749079,0.0277393,30557.0,30556.0,0.21570566]
[1688308749279,0.0277393,30557.0,30556.0,0.20983627]
[1688308749579,0.0277393,30557.0,30556.0,0.21570566]
[1688308750369,0.0277393,30557.0,30556.0,0.20983627]
[1688308750676,0.0277393,30557.0,30556.0,0.21570566]
[1688308751277,0.0277393,30557.0,30556.0,0.20983627]
[1688308752075,0.04596899,30557.0,30556.0,0.20983627]
[1688308752777,0.0277393,30557.0,30556.0,0.20983627]
[1688308755184,0.0277393,30557.0,30556.0,0.21570566]
[1688308755379,0.0277393,30557.0,30556.0,0.20983627]
[1688308756984,0.0277393,30557.0,30556.0,0.21570566]
[1688308757585,0.0277393,30557.0,30556.0,0.20983627]
[1688308757989,0.0277393,30557.0,30556.0,0.21570566]
[1688308758487,0.0277393,30557.0,30556.0,0.20983627]
[1688308760590,0.0277393,30557.0,30556.0,0.21570566]
[1688308761586,0.0277393,30557.0,30556.0,0.20983627]
[1688308762787,0.04596899,30557.0,30556.0,0.20983627]
[1688308762991,0.04596899,30557.0,30556.0,0.19098682]
[1688308763291,0.06481844,30557.0,30556.0,0.19098682]
[1688308763789,0.04658875,30557.0,30556.0,0.19098682]
[1688308764787,0.0277393,30557.0,30556.0,0.19685621]
[1688308765093,0.0277393,30557.0,30556.0,0.20983627]
[1688308767991,0.0277393,30557.0,30556.0,0.20977627]
[1688308769094,0.06481844,30557.0,30556.0,0.19092682]
[1688308770498,0.0277393,30557.0,30556.0,0.19092682]
[1688308774805,0.0277393,30557.0,30556.0,0.20977627]
[1688308777404,0.0277393,30557.0,30556.0,0.19092682]
[1688308778989,0.04658875,30557.0,30556.0,0.19092682]
[1688308779601,0.0277393,30557.0,30556.0,0.19092682]
[1688308781208,0.0277393,30557.0,30556.0,0.20977627]
[1688308783009,0.0277393,30557.0,30556.0,0.19092682]
[1688308784612,0.04658875,30557.0,30556.0,0.19092682]
[1688308784915,0.04658875,30557.0,30556.0,0.16159082]
[1688308785897,0.06481844,30557.0,30556.0,0.14195282]
[1688308786512,0.04658875,30557.0,30556.0,0.14195282]
[1688308787411,0.0277393,30557.0,30556.0,0.14195282]
[1688308788814,0.0277393,30557.0,30556.0,0.16158982]
[1688308789014,0.0277393,30557.0,30556.0,0.18043927]
[1688308789618,0.0277393,30557.0,30556.0,0.16158982]
[1688308791813,0.04596899,30557.0,30556.0,0.16158982]
[1688308792016,0.06481844,30557.0,30556.0,0.16158982]
[1688308792406,0.04658875,30557.0,30556.0,0.16158982]
[1688308793318,0.06481844,30557.0,30556.0,0.16158982]
[1688308794316,0.04658875,30557.0,30556.0,0.16158982]
[1688308794721,0.06481844,30557.0,30556.0,0.16158982]
[1688308796021,0.04658875,30557.0,30556.0,0.16158982]
[1688308796220,0.06481844,30557.0,30556.0,0.16158982]
[1688308796422,0.04658875,30557.0,30556.0,0.16158982]
[1688308796614,0.0277393,30557.0,30556.0,0.18043927]
[1688308797009,0.04596899,30557.0,30556.0,0.16158982]
[1688308797214,0.06481844,30557.0,30556.0,0.16158982]
[1688308797721,0.04658875,30557.0,30556.0,0.16158982]
[1688308798722,0.0277393,30557.0,30556.0,0.16158982]
[1688308800824,0.04596899,30557.0,30556.0,0.18043927]
[1688308801625,0.04596899,30557.0,30556.0,0.16158982]
[1688308802014,0.0277393,30557.0,30556.0,0.16158982]
[1688308802719,0.18818875,30557.0,30556.0,0.16158982]
[1688308802917,0.20641844,30557.0,30556.0,0.16158982]
[1688308803521,0.18818875,30557.0,30556.0,0.16158982]
[1688308803817,0.20641844,30557.0,30556.0,0.16158982]
[1688308804526,0.1693393,30557.0,30556.0,0.16158982]
[1688308805020,0.1693393,30557.0,30556.0,0.18043927]
[1688308805932,0.18028524,30557.0,30556.0,0.18043927]
[1688308806132,0.19851493,30557.0,30556.0,0.18043927]
[1688308806318,0.18028524,30557.0,30556.0,0.18043927]
[1688308806718,0.19851493,30557.0,30556.0,0.16158982]
[1688308807125,0.21736438,30557.0,30556.0,0.16158982]
[1688308810018,0.18028524,30557.0,30556.0,0.16158982]
[1688308810926,0.18028524,30557.0,30556.0,0.18043927]
[1688308812727,0.03868524,30557.0,30556.0,0.18043927]
[1688308813634,0.03868524,30557.0,30556.0,0.16158982]
[1688308816433,0.03868524,30557.0,30556.0,0.18043927]
[1688308819635,0.03868524,30557.0,30556.0,0.16158982]
[1688308819836,0.05753469,30557.0,30556.0,0.16158982]
[1688308820624,0.03868524,30557.0,30556.0,0.18043927]
[1688308822034,0.03868524,30557.0,30556.0,0.18630866]
[1688308822837,0.03868524,30557.0,30556.0,0.32690866]
[1688308826038,0.03868524,30557.0,30556.0,0.68770866]
[1688308826955,0.01904824,30557.0,30556.0,0.75320866]
[1688308827141,0.11796744,30566.0,30563.0,0.00659208]
[1688308827435,0.1416,30572.0,30567.0,0.019631]
[1688308827436,0.3037,30569.0,30567.0,0.019631]
[1688308827642,0.393028,30571.0,30569.0,0.019629]
[1688308827643,0.065428,30571.0,30569.0,0.019629]
[1688308827835,0.161228,30572.0,30570.0,0.160729]
[1688308828039,0.1416,30572.0,30571.0,0.1416]
[1688308828233,0.3608,30573.0,30571.0,0.18594684]
[1688308828430,0.1402,30572.0,30571.0,0.161228]
[1688308828734,0.1408,30572.0,30571.0,0.18588684]
[1688308828942,0.471,30572.0,30571.0,0.18588684]
[1688308831939,0.471,30572.0,30571.0,0.18650278]
[1688308834637,0.50184357,30572.0,30571.0,0.18650278]
[1688308834939,0.03084364,30572.0,30571.0,0.59730278]
[1688308835138,0.02634983,30573.0,30571.0,0.59730278]
[1688308835338,0.02634983,30573.0,30572.0,0.18544584]
[1688308835544,0.00049065,30574.0,30572.0,0.18544584]
[1688308835739,0.00049065,30574.0,30573.0,0.48784584]
[1688308835939,0.00049065,30574.0,30573.0,0.48841554]
[1688308837635,0.00049065,30574.0,30573.0,0.49500762]
[1688308841038,0.00049065,30574.0,30573.0,0.48841554]
[1688308841240,0.00049065,30574.0,30573.0,0.18561554]
[1688308841747,0.36129065,30574.0,30573.0,0.18561554]
[1688308842351,0.00049065,30574.0,30573.0,0.18561554]
[1688308842650,0.17250418,30574.0,30573.0,0.18511554]
[1688308843649,0.52305994,30574.0,30573.0,0.18511554]
[1688308844340,0.52305994,30574.0,30573.0,0.17924615]
[1688308844738,0.52305994,30574.0,30573.0,0.18511554]
[1688308845049,0.52305994,30574.0,30573.0,0.17924615]
[1688308845851,0.52305994,30574.0,30573.0,0.1603967]
[1688308846149,0.54268594,30574.0,30573.0,0.1603967]
[1688308846342,0.56153539,30574.0,30573.0,0.1603967]
[1688308846944,0.54190939,30574.0,30573.0,0.1603967]
[1688308847645,0.52305994,30574.0,30573.0,0.17924615]
[1688308848251,0.52305994,30574.0,30573.0,0.18511554]
[1688308848753,0.16225994,30574.0,30573.0,0.18511554]
[1688308849741,0.16225994,30574.0,30573.0,0.17924615]
[1688308849947,0.16225994,30574.0,30573.0,0.18511554]
[1688308852457,0.02065994,30574.0,30573.0,0.18561554]
[1688308856060,0.38145994,30574.0,30573.0,0.17974615]
[1688308856854,0.39968963,30574.0,30573.0,0.1608967]
[1688308857371,0.41853908,30574.0,30573.0,0.1608967]
[1688308857663,0.40030939,30574.0,30573.0,0.1608967]
[1688308857863,0.38145994,30574.0,30573.0,0.1608967]
[1688308858068,0.38145994,30574.0,30573.0,0.17974615]
[1688308858261,0.69345994,30574.0,30573.0,0.17974615]
[1688308858772,0.69345994,30574.0,30573.0,0.18561554]
[1688308858957,0.69345994,30574.0,30573.0,0.1608967]
[1688308860059,0.69345994,30574.0,30573.0,0.18561554]
[1688308861163,0.69345994,30574.0,30573.0,0.17974615]
[1688308862865,0.69345994,30574.0,30573.0,0.18561554]
[1688308863364,0.33265994,30574.0,30573.0,0.18561554]
[1688308864373,0.02065994,30574.0,30573.0,0.18561554]
[1688308868971,0.02065994,30574.0,30573.0,0.25111554]
[1688308869172,0.00049065,30574.0,30573.0,0.25111554]